Cogmind - Beta 13 @@@ ROGUE MODE // 2024.02.28 @ 18:13:43 Player: ktur Result: Destroyed by P-60 Hacker with Shock Rifle Performance ------------- Evolutions (2) 1000 Regions Visited (4) 800 Robots Destroyed (72) 360 Value Destroyed (2487) 2487 Prototype IDs (14) 280 Alien Tech Used (0) 0 Bonus (704) 704 TOTAL SCORE: 5631 Bonus ------- High Alert Combat Kills 4 Entered Garrisons 200 Used RIF Installer 500 Cogmind --------- Core Integrity 0/550 Matter 260/300 Energy 100/100 System Corruption 7% Temperature Cool (24) Movement Core (500) Ox9 Location -8/Garrison Parts ------- > --- POWER (1) -------- (None) > --- PROPULSION (3) --- (None) > --- UTILITY (5) ------ Large Storage Unit Makeshift System Shield > --- WEAPON (2) ------- Heavy Particle Cannon Heavy Mace > --- INVENTORY (15) --- Heavy Ion Engine Heavy Ion Engine Huge Storage Unit Improved Power Shielding Improved Power Shielding Improved Power Shielding Relay Coupler [Grunt] (27) Relay Coupler [Sentry] (22) Power Bank Shock Bomb Launcher Shock Bomb Launcher Rocket Launcher Improved Datajack Peak State ------------ > --- POWER ------------ Heavy Ion Engine > --- PROPULSION ------- Improved Aluminum Leg Improved Aluminum Leg Improved Aluminum Leg > --- UTILITY ---------- Large Storage Unit Compact Battery Improved Power Shielding Improved Shield Generator Makeshift System Shield > --- WEAPON ----------- Shock Bomb Launcher Heavy Mace > --- INVENTORY -------- Heavy Ion Engine Heavy Ion Engine Improved Aluminum Leg Huge Storage Unit Improved Power Shielding Improved Power Shielding Improved Power Shielding Relay Coupler [Grunt] Relay Coupler [Sentry] Power Bank Heavy Particle Cannon Shock Bomb Launcher Shock Bomb Launcher Rocket Launcher Improved Datajack [Rating: 34] Favorites ----------- Power Subdweller Power Source Engine Subdweller Power Source Power Core Light Nuclear Core Propulsion Spiked Treads Treads Spiked Treads Leg Improved Aluminum Leg Wheel Compact Wheel Utility Large Storage Unit Device Heat Sink Storage Large Storage Unit Processor Targeting Computer Hackware Makeshift System Shield Protection Medium Armor Plating Weapon Slug Cannon Energy Gun Medium Laser Energy Cannon Beam Cannon Ballistic Gun Battle Rifle Ballistic Cannon Slug Cannon Launcher Shock Bomb Launcher Special Weapon Multitool Impact Weapon Hammer Build | -11 -10 -10 -8 -8 ------- Run | Yrd Mat Sub Mat Gar Slots Evolved 4 | . . . 4 . Power . | . . . . . Propulsion 1 | . . . 1 . Utility 3 | . . . 3 . Weapon . | . . . . . Parts Attached 93 | 5 8 27 47 6 Power 6 | 1 1 1 3 . Engine 5 | 1 1 1 2 . Core 1 | . . . 1 . Reactor . | . . . . . Propulsion 24 | 2 . 5 16 1 Treads 17 | 2 . 5 10 . Leg 6 | . . . 5 1 Wheel 1 | . . . 1 . Hover . | . . . . . Flight . | . . . . . Utility 21 | 1 3 3 12 2 Device 5 | . 1 2 1 1 Storage 7 | 1 2 . 4 . Processor 4 | . . 1 3 . Hackware 1 | . . . 1 . Protection 4 | . . . 3 1 Artifact . | . . . . . Weapon 42 | 1 4 18 16 3 Energy Gun 2 | 1 . . 1 . Energy Cannon 10 | . 2 2 5 1 Ballistic Gun 4 | . . 4 . . Ballistic Cannon 9 | . . 4 5 . Launcher 9 | . 1 2 4 2 Special Weapon 1 | . . 1 . . Impact Weapon 7 | . 1 5 1 . Slashing Weapon . | . . . . . Piercing Weapon . | . . . . . Special Melee Weapon . | . . . . . Unidentified Prototypes 2 | . . . 2 . Parts Lost 30 | . . 8 14 8 Power 2 | . . 1 . 1 Propulsion 14 | . . 4 6 4 Utility 8 | . . 1 4 3 Weapon 6 | . . 2 4 . Highest Loss Streak 8 | . . 2 7 8 To Critical Strikes . | . . . . . Average Slot Usage (%) 86 | . 96 85 86 95 Engine 7 | . 14 7 5 9 Treads 19 | . 28 20 16 . Leg 1 | . . . 1 25 Wheel 1 | . . . 4 . Device 2 | . 7 2 3 2 Storage 15 | . 17 14 15 23 Processor 10 | . . 11 13 4 Protection 1 | . . . 4 3 Energy Gun 1 | . 13 . . . Energy Cannon 5 | . 13 4 4 . Ballistic Gun 5 | . . 8 . . Ballistic Cannon 8 | . . 8 9 . Impact Weapon 4 | . . 5 . 9 Naked Turns . | . . . . . Heaviest Build 59 | 12 29 34 59 44 Greatest Support 62 | 40 40 40 62 39 Greatest Overweight (x) 2 | . . 1 2 1 Average Overweight (x) . | . . . . . Largest Inventory Capacity 15 | 8 15 15 15 15 Average Capacity 14 | 7 9 15 15 15 Most Carried 15 | 8 15 15 15 15 Average Carried 12 | 4 9 12 14 14 Final Capacity 15 | 8 15 15 15 15 Final Carried 15 | 7 15 10 15 13 Class Distribution -------------------- 100% | Mutant Dominant Class ---------------- Mutant | -10/Materials Mutant | -10/Subcaves Mutant | -8/Materials Mutant | -8/Garrison Resources | -11 -10 -10 -8 -8 ----------- Run | Yrd Mat Sub Mat Gar Matter Collected 2269 | 250 190 753 844 232 Remotely . | . . . . . Salvage Created 2463 | 107 177 566 1306 307 Parts 145 | 11 14 28 83 9 Haulers Intercepted 3 | . . . 3 . Recyclers Shooed 1 | . 1 . . . Parts Field Recycled . | . . . . . Retrieved Matter . | . . . . . Parts Self-Destructed 22 | . . 22 . . Prevented . | . . . . . Kills | -11 -10 -10 -8 -8 ------- Run | Yrd Mat Sub Mat Gar Combat Hostiles Destroyed 53 | . 6 12 29 6 Melee 3 | . . 3 . . Guns 6 | . . 6 . . Cannons 21 | . 3 2 16 . AOE 19 | . 3 1 12 3 Classes Destroyed 14 | 1 4 2 6 1 Worker 1 | . . . 1 . Builder 5 | . 2 . 3 . Tunneler 4 | 4 . . . . Hauler 3 | . . . 3 . Recycler 2 | . . . 2 . Watcher 4 | . 2 . 2 . Swarmer 11 | . 3 . 8 . Grunt 21 | . 3 . 15 3 Duelist 1 | . . . 1 . Sentry 5 | . . . 4 1 Specialist 1 | . . . . 1 Hunter 2 | . . . 1 1 Cobbler 1 | . . 1 . . Subdweller 12 | . . 12 . . Best Kill Streak 12 | 3 4 2 12 3 Combat Bots Only 8 | . 3 2 8 3 Max Kills in Single Turn 4 | 1 3 1 4 1 Gunslinging . | . . . . . Exploded 3 | . 3 1 3 1 Melee 1 | . . 1 . . Uniques/NPCs Destroyed . | . . . . . Combat | -11 -10 -10 -8 -8 -------- Run | Yrd Mat Sub Mat Gar Hostile Shots Fired 413 | . 23 64 218 108 Missed 91 | . 7 14 54 16 Damage Taken 5118 | . 237 1316 2272 1293 Core 757 | . 41 161 223 332 Absorbed by Shields 73 | . . . . 73 Redirected to Shielding 105 | . . . . 105 Regen/Repaired (Parts) 81 | . . . 81 . Core Remaining (%) 59 | 100 . 19 . . Volleys Fired 248 | 13 28 76 118 13 Largest 2 | 1 1 2 2 1 Hottest 123 | 50 60 90 123 75 Shots Fired 337 | 13 28 131 152 13 Gun 82 | 13 . 65 4 . Cannon 220 | . 27 63 129 1 Launcher 35 | . 1 3 19 12 Special . | . . . . . Kinetic 192 | . . 104 88 . Thermal 109 | 13 27 24 44 1 Explosive 4 | . 1 3 . . Electromagnetic 32 | . . . 20 12 Robot Hit Streak 35 | 2 6 35 10 6 Robot Miss Streak 6 | 2 3 1 6 1 Penetration Max . | . . . . . Secondary Targets . | . . . . . Shots Hit Robots 207 | 7 17 81 84 18 Core Hits 107 | 4 8 28 56 11 Critical Kills 4 | . . . 4 . Critical Parts Destroyed 3 | . 1 1 1 . Critical Strikes 12 | 2 1 4 5 . Burn 2 | 2 . . . . Destroy 7 | . . 2 5 . Blast 1 | . . 1 . . Smash 2 | . 1 1 . . Melee Attacks 82 | . 11 61 . 10 Impact 82 | . 11 61 . 10 Slashing . | . . . . . Piercing . | . . . . . Sneak Attacks 2 | . 2 . . . Combat Hostiles . | . . . . . Follow-up Attacks . | . . . . . Damage Inflicted 6811 | 86 528 1777 3274 1146 Guns 677 | 86 . 566 25 . Cannons 2710 | . 263 527 1920 . Explosions 2517 | . 122 297 1317 781 Melee 877 | . 125 387 . 365 Ramming 30 | . 18 . 12 . Kinetic 2524 | . . 742 1782 . Thermal 1725 | 86 263 351 783 242 Explosive 419 | . 122 297 . . Electromagnetic 1236 | . . . 697 539 Impact 877 | . 125 387 . 365 Slashing . | . . . . . Piercing . | . . . . . Highest Corruption 7 | . . . 1 7 Average Corruption 1 | . . . 1 1 Corruption Purged . | . . . . . Corruption Blocked . | . . . . . Effects 5 | . . . 5 . Message Errors 1 | . . . 1 . Heat Flow Errors 1 | . . . 1 . Energy Discharges 1 | . . . 1 . Data Loss (major) 1 | . . . 1 . Alerts 1 | . . . 1 . Overload Shots . | . . . . . Overflow Damage 187 | . 105 . 42 40 Projectiles 9 | . . . 9 . Explosions 52 | . . . 33 19 Melee 126 | . 105 . . 21 Knockbacks 17 | . . 7 10 . Impact 5 | . . 4 1 . Kinetic 12 | . . 3 9 . Secondary . | . . . . . Self-Inflicted Damage 398 | . 29 52 142 175 Shots 18 | . 1 2 6 9 Rammed 8 | . 3 . 5 . Targets Rammed 10 | . 5 . 5 . Kicked . | . . . . . Crushed 2 | . 2 . . . Highest Temperature 422 | 60 176 . 422 24 Average Temperature 140 | 23 64 . 161 7 Received Heat Transfer 1272 | . 84 315 801 72 Effects 7 | . . . 7 . Shutdowns 3 | . . . 3 . Energy Bleed 1 | . . . 1 . Interference 2 | . . . 2 . Damage (minor) 1 | . . . 1 . Siege Activations . | . . . . . Robots Corrupted 3 | . . . 1 2 Combat Hostiles 3 | . . . 1 2 Parts Fried 11 | . 5 . 2 4 Impact Corruptions 5 | . 3 . . 2 Robots Melted 1 | . . . . 1 Combat Hostiles 1 | . . . . 1 Parts Melted 4 | 2 . . 2 . Heat Transferred 2988 | 407 555 740 1086 200 Parts Sabotaged . | . . . . . Parts Stolen . | . . . . . Parts Stripped . | . . . . . Power Chain Reactions 4 | . . . 3 1 Alert | -11 -10 -10 -8 -8 ------- Run | Yrd Mat Sub Mat Gar Peak Influence 452 | 20 274 . 452 370 Initial 142 | . 13 . . 142 Average 156 | 5 105 . 155 317 Maximum Alert Level 2 | . 1 . 2 1 Low Security (%) 66 | 100 83 . 68 12 Level 1 26 | . 16 . 20 87 Level 2 7 | . . . 11 . Level 3 . | . . . . . Level 4 . | . . . . . Level 5 . | . . . . . High Security . | . . . . . Max Security . | . . . . . Squads Dispatched 6 | . 1 . 5 . Investigation 2 | . 1 . 1 . Extermination . | . . . . . Reinforcement 4 | . . . 4 . Assault . | . . . . . Garrison . | . . . . . Intercept . | . . . . . Searches Triggered . | . . . . . Construction Impeded 2 | . . . 2 . Haulers Reinforced . | . . . . . Active Scanning Responses . | . . . . . Cargo Convoy Interrupts . | . . . . . Stealth | -11 -10 -10 -8 -8 --------- Run | Yrd Mat Sub Mat Gar Distress Signals 4 | . 1 . 3 . Communications Jammed . | . . . . . Distress Signals . | . . . . . Times Spotted 75 | . 8 13 42 12 Peak Tracking Total 8 | . 3 2 8 6 Tactical Retreats 3 | . . . 1 2 Traps | -11 -10 -10 -8 -8 ------- Run | Yrd Mat Sub Mat Gar Traps Triggered 6 | . 1 2 2 1 Indirectly 1 | . . . 1 . Trap Hack Attempts . | . . . . . Triggered . | . . . . . Disarmed . | . . . . . Reprogrammed . | . . . . . Reused 3 | . . 3 . . Traps Extracted . | . . . . . Installed 3 | . . 3 . . Triggered 3 | . . 3 . . Most Traps Carried 2 | . . 2 . . Machines | -11 -10 -10 -8 -8 ---------- Run | Yrd Mat Sub Mat Gar Machines Disabled 16 | . 2 1 11 2 Max in Single Turn 2 | . 1 1 2 1 Garrison Relay 1 | . . . . 1 Machines Repaired . | . . . . . Machines Dismantled . | . . . . . Machines Sabotaged . | . . . . . Overloaded Fab Kills . | . . . . . Hacking | -11 -10 -10 -8 -8 --------- Run | Yrd Mat Sub Mat Gar Machines Accessed 12 | . 4 1 7 . Terminals 9 | . 4 . 5 . Fabricators . | . . . . . Repair Stations 1 | . . . 1 . Recycling Units . | . . . . . Scanalyzers . | . . . . . Garrison Access 1 | . . . 1 . Total Hacks 44 | . 21 1 22 . Successful 22 | . 10 1 11 . Failed 22 | . 11 . 11 . Catastrophic 2 | . . . 2 . Database Lockouts . | . . . . . Manual 30 | . 14 . 16 . Terminals 40 | . 21 . 19 . Fabricators . | . . . . . Repair Stations 2 | . . . 2 . Recycling Units . | . . . . . Scanalyzers . | . . . . . Garrison Access 1 | . . . 1 . Terminal Hacks 16 | . 9 1 6 . Part Schematic 1 | . 1 . . . Robot Schematic 1 | . 1 . . . Robot Analysis 5 | . 4 . 1 . Prototype ID Bank 1 | . . . 1 . Branch Access Points 1 | . 1 . . . Unreport Threat 3 | . . . 3 . Locate Traps 1 | . 1 . . . Hauler Manifests 1 | . 1 . . . Zone Layout 1 | . . . 1 . Derelict Proto ID Bank 1 | . . 1 . . Fabricator Hacks . | . . . . . Repair Station Hacks 2 | . . . 2 . Scan Component 1 | . . . 1 . Repair 1 | . . . 1 . Recycling Unit Hacks . | . . . . . Scanalyzer . | . . . . . Garrison Access Hacks 1 | . . . 1 . Unlock Access 1 | . . . 1 . Unauthorized Hacks 3 | . 1 . 2 . Terminals 3 | . 1 . 2 . Botnet 3 | . 1 . 2 . Fabricators . | . . . . . Repair Stations . | . . . . . Recycling Units . | . . . . . Scanalyzers . | . . . . . Garrison Access . | . . . . . Data Cores Recovered . | . . . . . Used . | . . . . . Hacking Detections 10 | . 4 . 6 . Full Trace Events 1 | . 1 . . . Feedback Events . | . . . . . Feedback Blocked . | . . . . . Robot Schematics Acquired 1 | . 1 . . . Robots Built . | . . . . . Authchips . | . . . . . Time . | . . . . . Total Robot Build Rating . | . . . . . Part Schematics Acquired 1 | . 1 . . . Parts Built . | . . . . . Authchips . | . . . . . Time . | . . . . . Total Part Build Rating . | . . . . . Parts Repaired 1 | . . . 1 . Time 32 | . . . 32 . Parts Recycled . | . . . . . Recycled Matter . | . . . . . Retrieved Matter . | . . . . . Retrieved Components . | . . . . . Parts Scanalyzed . | . . . . . Part Schematics Acquired . | . . . . . Parts Damaged . | . . . . . Bothacking | -11 -10 -10 -8 -8 ------------ Run | Yrd Mat Sub Mat Gar Used RIF Installer 1 | . . . . 1 Robots Hacked . | . . . . . Non-combat . | . . . . . Combat . | . . . . . Robot Hacks Applied . | . . . . . Relay Couplers Released 4 | . . . . 4 Machine Destruction 4 | . . . . 4 Fabnet Peak Effective % . | . . . . . Robots Rewired . | . . . . . Allies Hacked . | . . . . . Hacks Repelled . | . . . . . Allies | -11 -10 -10 -8 -8 -------- Run | Yrd Mat Sub Mat Gar Total Allies . | . . . . . Largest Group . | . . . . . Highest-Rated Group . | . . . . . Highest-Rated Ally . | . . . . . Total Orders . | . . . . . Ally Attacks . | . . . . . Total Damage . | . . . . . Kills . | . . . . . Allies Corrupted . | . . . . . Allies Melted . | . . . . . Intel | -11 -10 -10 -8 -8 ------- Run | Yrd Mat Sub Mat Gar Robot Analysis Total 5 | . 4 . 1 . Derelict Logs Recovered 1 | . . 1 . . Drone Launches . | . . . . . Drone Recoveries . | . . . . . Exploration | -11 -10 -10 -8 -8 ------------- Run | Yrd Mat Sub Mat Gar Turns Passed 8671 | 143 652 5416 2091 369 Spaces Moved 3855 | 69 304 2461 867 154 Core 9 | 9 . . . . Treads 3576 | 60 304 2461 751 . Legs 215 | . . . 61 154 Wheels 55 | . . . 55 . Hover . | . . . . . Flight . | . . . . . Fastest Speed 50 | 50 160 160 115 120 Average Speed 193 | 145 160 200 189 186 Slowest Speed 270 | 160 160 260 270 190 Overloaded Moves . | . . . . . Propulsion Burnouts . | . . . . . Robots Hopped . | . . . . . Cave-ins Triggered . | . . . . . Exploration Rate (%) 51 | 5 66 95 71 19 Regions Visited 4 Branch Regions 1 Pre-discovered Areas 2 | . . 2 . . Known Exits Taken 1 | . . . 1 . Unknown Exits Taken 3 | 1 1 1 . . Scrap Searched 20 | . . 20 . . Spaces Dug 16 | . 7 9 . . Terrain Destroyed 121 | . 7 28 83 3 Melee 8 | . 1 7 . . Projectile 43 | . . 11 32 . AOE 70 | . 6 10 51 3 Terrain Rammed . | . . . . . Walls Destroyed . | . . . . . Machines Disabled . | . . . . . Actions | -11 -10 -10 -8 -8 --------- Run | Yrd Mat Sub Mat Gar Total 4582 | 97 418 2705 1156 206 Wait 179 | 1 49 46 66 17 Move 3852 | 68 303 2460 867 154 Hop . | . . . . . Pick Up 61 | 9 10 14 26 2 Fast Attach 38 | 4 3 6 24 1 Attach 22 | 1 1 6 11 3 Detach . | . . . . . Swap 34 | . 4 15 13 2 Drop 53 | 1 4 18 26 4 Fire 248 | 13 28 76 118 13 Melee 82 | . 11 61 . 10 Ram . | . . . . . Kick . | . . . . . Crush 10 | . 5 . 5 . Escape Stasis . | . . . . . Rewire . | . . . . . Trap 3 | . . 3 . . Miscellaneous . | . . . . . Route ------- -11/Scrapyard -10/Materials (discovered 4 exits: [*Mat] / *Min x2 / *Sub) -10/Subcaves (discovered 2 exits: *Mat x2) -8/Materials (discovered 3 exits: [*Fac x2] / Gar) -8/Garrison History --------- Turn | Location | Event 5 | -11/Scrapyard | Discovered new exit (range 15) 144 | -11/Scrapyard | Entered Materials 279 | -10/Materials | Discovered new exit (range 12) 330 | -10/Materials | Build established: Mutant 466 | -10/Materials | Identified exit to Mines 550 | -10/Materials | Discovered new exit (range 4) 793 | -10/Materials | Discovered new exit (range 3) 796 | -10/Materials | Entered Subcaves 1220 | -10/Subcaves | Shifting Twisted Machinery released Spk. Treads 1263 | -10/Subcaves | Shifting Twisted Machinery released Sub. Laser 1465 | -10/Subcaves | Learned location of Zion (-6) 1465 | -10/Subcaves | Met a Zionite searching for "candidates" 1790 | -10/Subcaves | Visited 4L-MR0's lab 1813 | -10/Subcaves | Found Power Bank 2517 | -10/Subcaves | Discovered new exit (range 8) 2657 | -10/Subcaves | Shifting Twisted Machinery released Spk. Treads 2668 | -10/Subcaves | Shifting Twisted Machinery released Sub. Monowheel 2668 | -10/Subcaves | Core integrity fell below 50% 2901 | -10/Subcaves | A swath of the cavern ceiling suddenly collapsed 3268 | -10/Subcaves | Shifting Twisted Machinery released Mak. Light Armor Plating 3402 | -10/Subcaves | Shifting Twisted Machinery released Battle Cannon 3556 | -10/Subcaves | A swath of the cavern ceiling suddenly collapsed 3719 | -10/Subcaves | Core integrity fell below 20% 4390 | -10/Subcaves | Discovered new exit (range 14) 6212 | -10/Subcaves | Entered Materials 6212 | -8/Materials | Evolved 4 slots: Propulsion x1, Utility x3 6963 | -8/Materials | Repaired Med. Armor Plating 7041 | -8/Materials | Discovered new exit (range 5) 7414 | -8/Materials | Destroyed 8 combat bots 7469 | -8/Materials | Lost 7 parts (2n4u1w) 7984 | -8/Materials | Discovered new exit (range 10) 8052 | -8/Materials | Lost 3 parts (2n1w) 8303 | -8/Materials | Identified exit to Garrison 8303 | -8/Materials | Entered Garrison 8337 | -8/Garrison | Triggered checkpoint 8625 | -8/Garrison | Installed Relay Interface Framework 8631 | -8/Garrison | Core integrity fell below 50% 8664 | -8/Garrison | Core integrity fell below 20% 8672 | -8/Garrison | Destroyed by P-60 Hacker with Shock Rifle Last Messages --------------- 08662_ P-60 Hacker destroyed. 08662_ X-57 Shotgunner overheating. 08663_ Acquired 39 matter. 08663_ Heat Sink fried. 08663_ Y-45 Defender destroyed. 08663_ Chain reaction triggered in Corrupted Mic. Nuclear Core. 08663_ Destroyed Remote Datajack. 08663_ Destroyed Nuclear Core. 08663_ X-57 Shotgunner overheating. 08664_ X-57 Shotgunner heat damages Hpw. Shotgun, VSS Leg, Hrd. Medium Armor Plating, VSS Leg. 08664_ X-57 Shotgunner critical meltdown. 08665_ Acquired 27 matter. 08665_ Imp. Aluminum Leg destroyed. 08666_ Imp. Power Shielding destroyed. 08668_ H-55 Commando system terminally corrupted. 08668_ Targeting Computer fried. 08668_ Imp. Aluminum Leg destroyed. 08671_ P-60 Hacker resets P-60 Hacker, system corruption cleaned. 08672_ Hvy. Ion Engine destroyed. Map ----- +----------------------------------------------------+ | ??????????#]]]### ########?####### ###! | | ????????????????# ################ #?## | | ????????????????# ##"""""##" *!"## #??? | | ????????????????#"### #### !###"#??? | | ????????????????# #??? | | ????????????????# #??? | | ?????????#####??# ############## #??? | | ?????????# #??# #????????????# #??? | | ?????????# #??# #????????????# #??? | | ?????????# #??# ###??????????# #??? | | ?????????# #??# #??????????" #??? | | ?????????# #??# #########??" #??? | | ?????????# #??# #?" #??? | | ?????????# #??# #########??" #??? | | ?????????# #??# ###??????????# #??? | | ?????????# #??# #????????????# #??? | | ?????????# #??# #????????????# #??? | | ?????????# #### ##########???# ???? | | ?????????# [= ???? | | ?????????# = ???? | | ?????????# = ???? | | ?????????## "################### ?????? | | ??????????# #????????????????????????? | | ??????????# =#######??????????????????? | | ??????????# [%= "#??????????????????? | | ??????????# p@ "#??????????????????? | | ??????????#!%p[ ""#??????????????????? | | ??????????# = #####??????????????????? | | ??????????# ###??????????????????????? | | ??????????# #????????????????????????? | | ??????????# ????????????????????????? | | ??????????# ????????????????????????? | | ??????????####????????????????????????? | | ??????????????????????????????????????? | | ??????????????????????????????????????? | | ??????????????????????????????????????? | | ??????????????????????????????????????? | | ??????????????????????????????????????? | | ??????????????????????????????????????? | | ??????????????????????????????????????? | | ??????????????????????????????????????? | | ??????????????????????????????????????? | | ??????????????????????????????????????? | | ??????????????????????????????????????? | | ??????????????????????????????????????? | | ??????????????????????????????????????? | | ??????????????????????????????????????? | | ??????????????????????????????????????? | | ??????????????????????????????????????? | | ??????????????????????????????????????? | +----------------------------------------------------+ Best States ------------- Heat Dissipation 41 Energy Generation 15 Energy Capacity 480 Matter Stores 396 Matter Capacity 500 Sight Range 21 Terrain Scan Range 16 Terrain Scan Density 10 Armor Coverage 450 Power Shielding 66 Evasion (%) 45 Targeting Accuracy 17 Recoil Reduction 3 Defensive Hacking 11 Item Schematics ----------------- Transport Network Coupler | -10/Materials | Hacked Robot Schematics ------------------ M-13 Machinist | -10/Materials | Hacked Fabricated ------------ Nothing Alien Tech Used ----------------- None Achievements -------------- None Challenges ------------ None Game ------ Seed ExoskeletonControlDerivative Manual? 0 Play Time 00:38:07 Cumulative 758.5 hours Start 2024.02.28 @ 17:15:36 End 2024.02.28 @ 18:13:43 Sessions 3 Manual Loads 0 Difficulty Rogue Special Mode None Game No. 689 Rogue 689 Adventurer 0 Explorer 0 Win Type - Total 39 Types 14/4/11/2/0/0/5/2/1 Lore% 92 Gallery% 94 Achievement% 84 Wizard Run 0 Options --------- Layout 0 ASCII 0 Keyboard 0 Movement Numpad Keybinds 0 Fullscreen 1 Font 18/Smallcaps Map View 76x50 Zoom Use 0% Tactical HUD 1 Map Filters NONE Filters NONE Steam 1 RUN: 02ae290d-b7d6-4fe7-b18f-cd8430046efb